[Event "FRA-ch Youth U14 2019"]
[Site "Hyeres"]
[Date "2019.04.14"]
[Round "1.1"]
[White "Nguyen-Cadoret, Nathan"]
[Black "Morais, Thomas"]
[Result "1-0"]
[ECO "A73"]
[WhiteElo "2211"]
[BlackElo "1786"]
[Annotator "NA"]
[PlyCount "87"]
[EventDate "2019.04.14"]
[EventType "swiss"]
[EventCountry "FRA"]
[SourceTitle "playchess.com"]
[Source "ChessBase"]
[SourceQuality "1"]
[TimeControl "5400+30"]

1. d4 {[%emt 0:00:10]} Nf6 {[%emt 0:00:00]} 2. c4 {[%emt 0:00:30]} c5 {[%emt 0:00:00]} 3. d5 {[%emt 0:00:34]} e6 {[%emt 0:00:00]} 4. Nc3 {[%emt 0:00:37]} exd5 {[%emt 0:00:00]} 5. cxd5 {[%emt 0:00:05]} d6 {[%emt 0:00:01]} 6. e4 {[%emt 0:01:26]} g6 {[%emt 0:00:05]} 7. Nf3 {[%emt 0:00:19]} Bg7 {[%emt 0:00:04]} 8. Be2 {[%emt 0:00:10]} O-O {[%emt 0:00:57]} 9. O-O {[%emt 0:00:46]} Bg4 {[%emt 0:08:22]} 10. Nd2 {[%emt 0:18:14]} Bxe2 {[%emt 0:00:44]} 11. Qxe2 {[%emt 0:01:08]} Re8 {[%emt 0:10:39]} 12. Re1 {[%emt 0:17:42]} Nbd7 {[%emt 0:05:14]} 13. a4 {[%emt 0:08:47]} Nb6 {[%emt 0:02:08]} 14. Qd3 {[%emt 0:02:51]} Rc8 {[%emt 0:03:01]} 15. a5 {[%emt 0:01:29]} c4 {[%emt 0:00:42]} 16. Qf1 {[%emt 0:00:39]} Nbd7 {[%emt 0:03:45]} 17. Nxc4 {[%emt 0:04:51]} Qc7 {[%emt 0:03:20]} 18. Nd2 {[%emt 0:19:45]} Nc5 {[%emt 0:06:41]} 19. Ra3 {[%emt 0:00:55]} Qd7 {[%emt 0:04:06]} 20. f3 {[%emt 0:02:01]} Nh5 {[%emt 0:04:05]} 21. Nb3 {[%emt 0:06:49]} Nxb3 {[%emt 0:02:15]} 22. Rxb3 {[%emt 0:00:03]} Bxc3 {[%emt 0:08:48]} 23. bxc3 {[%emt 0:00:48]} Rc5 {[%emt 0:03:07]} 24. a6 {[%emt 0:11:21]} b6 {[%emt 0:33:56]} 25. Be3 {[%emt 0:00:30]} Rc7 {[%emt 0:00:00]} 26. Bd4 {[%emt 0:00:00]} Rec8 27. Rb4 {[%emt 0:01:00]} Qe7 {[%emt 0:01:30]} 28. Qf2 {[%emt 0:00:30]} Qg5 {[%emt 0:00:30]} 29. Re3 {[%emt 0:00:00]} Rc4 30. Rxc4 {[%emt 0:01:00]} Rxc4 {[%emt 0:01:00]} 31. e5 {[%emt 0:00:00]} Ra4 {[%emt 0:00:00]} 32. exd6 {[%emt 0:01:00]} Ra1+ {[%emt 0:00:00]} 33. Re1 {[%emt 0:00:00]} Nf4 {[%emt 0:00:00]} 34. Rxa1 {[%emt 0:00:07]} Nh3+ {[%emt 0:00:00]} 35. Kf1 {[%emt 0:00:02]} Nxf2 {[%emt 0:00:00]} 36. Bxb6 {[%emt 0:00:31]} Qxd5 {[%emt 0:00:00]} 37. Bxf2 {[%emt 0:00:46]} Qxd6 {[%emt 0:00:00]} 38. Bxa7 {[%emt 0:00:54]} Qd3+ {[%emt 0:00:00]} 39. Kg1 {[%emt 0:00:34]} Qxc3 {[%emt 0:00:00]} 40. Rb1 {[%emt 0:00:29]} Qa5 {[%emt 0:00:00]} 41. Bd4 {[%emt 0:00:09]} f5 {[%emt 0:00:00]} 42. a7 {[%emt 0:00:20]} f4 {[%emt 0:00:00]} 43. Bf2 {[%emt 0:00:34]} Kf7 {[%emt 0:00:00]} 44. h3 {[%emt 0:00:02]} 1-0

[Event "FRA-ch Youth U14 2019"]
[Site "Hyeres"]
[Date "2019.04.14"]
[Round "1.2"]
[White "Charil, Noa"]
[Black "Razafindratsima, Timothe"]
[Result "0-1"]
[ECO "D02"]
[WhiteElo "1784"]
[BlackElo "2181"]
[Annotator "NA"]
[PlyCount "106"]
[EventDate "2019.04.14"]
[EventType "swiss"]
[EventCountry "FRA"]
[SourceTitle "playchess.com"]
[Source "ChessBase"]
[SourceQuality "1"]
[TimeControl "5400+30"]

1. d4 {[%emt 0:00:00]} Nf6 {[%emt 0:00:00]} 2. Nf3 {[%emt 0:00:00]} g6 {[%emt 0:00:00]} 3. g3 {[%emt 0:00:00]} Bg7 {[%emt 0:00:01]} 4. Bg2 {[%emt 0:00:00]} O-O {[%emt 0:00:13]} 5. O-O {[%emt 0:00:06]} d5 {[%emt 0:00:22]} 6. b3 {[%emt 0:00:20]} c5 {[%emt 0:00:50]} 7. e3 {[%emt 0:01:29]} Nc6 {[%emt 0:00:18]} 8. Bb2 {[%emt 0:02:53]} Bg4 {[%emt 0:03:24]} 9. Nbd2 {[%emt 0:10:29]} Ne4 {[%emt 0:09:59]} 10. h3 {[%emt 0:16:41]} Bf5 {[%emt 0:06:53]} 11. c3 {[%emt 0:08:17]} Qa5 {[%emt 0:08:55]} 12. Nxe4 {[%emt 0:05:26]} Bxe4 {[%emt 0:00:46]} 13. Qd2 {[%emt 0:20:59]} Rfd8 {[%emt 0:04:37]} 14. Rfd1 {[%emt 0:02:18]} Rac8 {[%emt 0:01:26]} 15. Ne1 {[%emt 0:10:11]} Bxg2 {[%emt 0:02:45]} 16. Kxg2 {[%emt 0:00:22]} e5 {[%emt 0:01:20]} 17. dxe5 {[%emt 0:02:29]} Nxe5 {[%emt 0:02:03]} 18. Nd3 {[%emt 0:01:15]} Nxd3 {[%emt 0:01:39]} 19. Qxd3 {[%emt 0:00:06]} c4 {[%emt 0:00:11]} 20. Qc2 {[%emt 0:02:24]} Qc5 {[%emt 0:03:31]} 21. Rac1 {[%emt 0:01:34]} h5 {[%emt 0:00:48]} 22. h4 {[%emt 0:07:06]} Qc6 {[%emt 0:01:42]} 23. Kh2 {[%emt 0:00:48]} b5 {[%emt 0:49:47]} 24. b4 {[%emt 0:04:22]} Be5 {[%emt 0:00:00]} 25. a4 {[%emt 0:02:10]} a6 {[%emt 0:00:00]} 26. Ra1 {[%emt 0:00:41]} Ra8 {[%emt 0:00:00]} 27. Ra3 {[%emt 0:00:05]} Qe6 {[%emt 0:00:00]} 28. Qe2 {[%emt 0:00:42]} bxa4 {[%emt 0:00:00]} 29. Rc1 {[%emt 0:00:36]} a5 {[%emt 0:00:00]} 30. Rxa4 {[%emt 0:00:31]} axb4 {[%emt 0:00:00]} 31. Rxb4 {[%emt 0:00:19]} Ra2 {[%emt 0:00:00]} 32. Rc2 {[%emt 0:00:48]} Bd6 {[%emt 0:00:00]} 33. Rb5 {[%emt 0:00:29]} Qe4 {[%emt 0:00:00]} 34. Kg1 {[%emt 0:00:30]} Be5 {[%emt 0:00:00]} 35. Qd1 {[%emt 0:00:29]} Bf6 {[%emt 0:00:00]} 36. Rb6 {[%emt 0:00:32]} Kg7 {[%emt 0:00:00]} 37. Rb5 {[%emt 0:00:11]} Kg8 {[%emt 0:00:00]} 38. Rd2 {[%emt 0:00:41]} Qe6 {[%emt 0:00:00]} 39. Kh2 {[%emt 0:00:33]} Qc6 {[%emt 0:00:00]} 40. Qb1 {[%emt 0:00:35]} Raa8 {[%emt 0:00:00]} 41. Ba1 {[%emt 0:00:29]} Rxa1 {[%emt 0:00:00]} 42. Qxa1 {[%emt 0:00:20]} Qxb5 {[%emt 0:00:00]} 43. e4 {[%emt 0:00:41]} dxe4 {[%emt 0:00:00]} 44. Rxd8+ {[%emt 0:00:06]} Bxd8 {[%emt 0:00:00]} 45. Qa8 {[%emt 0:00:05]} Qd7 {[%emt 0:00:00]} 46. Qxe4 {[%emt 0:00:13]} Qd3 {[%emt 0:00:00]} 47. Qe5 {[%emt 0:00:33]} Qd7 {[%emt 0:00:00]} 48. Qe4 {[%emt 0:00:44]} Qe6 {[%emt 0:00:00]} 49. Qa8 {[%emt 0:00:10]} Qf6 {[%emt 0:00:00]} 50. Kg2 {[%emt 0:00:24]} Kg7 {[%emt 0:00:00]} 51. Qc8 {[%emt 0:00:06]} Bb6 {[%emt 0:00:00]} 52. Qxc4 {[%emt 0:00:21]} Qxf2+ {[%emt 0:00:00]} 53. Kh3 {[%emt 0:00:28]} Qg1 {[%emt 0:00:00]} 0-1

[Event "FRA-ch Youth U14 2019"]
[Site "Hyeres"]
[Date "2019.04.14"]
[Round "1.3"]
[White "Maugenest, Ghislain"]
[Black "Mathez, Florian"]
[Result "1-0"]
[ECO "E36"]
[WhiteElo "2167"]
[BlackElo "1784"]
[Annotator "NA"]
[PlyCount "115"]
[EventDate "2019.04.14"]
[EventType "swiss"]
[EventCountry "FRA"]
[SourceTitle "playchess.com"]
[Source "ChessBase"]
[SourceQuality "1"]
[TimeControl "5400+30"]

1. d4 {[%emt 0:00:00]} Nf6 {[%emt 0:00:00]} 2. c4 {[%emt 0:00:00]} e6 {[%emt 0:00:00]} 3. Nc3 {[%emt 0:00:16]} Bb4 {[%emt 0:00:00]} 4. Qc2 {[%emt 0:00:38]} O-O {[%emt 0:00:11]} 5. a3 {[%emt 0:00:23]} Bxc3+ {[%emt 0:00:17]} 6. Qxc3 {[%emt 0:00:22]} d5 {[%emt 0:00:15]} 7. Bg5 {[%emt 0:00:56]} Nbd7 {[%emt 0:15:23]} 8. e3 {[%emt 0:01:01]} c6 {[%emt 0:07:30]} 9. Bd3 {[%emt 0:01:57]} Ne4 {[%emt 0:03:02]} 10. Bxd8 Nxc3 11. Bh4 {[%emt 0:01:13]} Ne4 {[%emt 0:01:34]} 12. f3 {[%emt 0:01:01]} Nef6 {[%emt 0:00:32]} 13. Ne2 {[%emt 0:00:57]} e5 {[%emt 0:06:58]} 14. c5 {[%emt 0:04:48]} Re8 {[%emt 0:04:04]} 15. Kd2 {[%emt 0:01:18]} b6 {[%emt 0:02:48]} 16. b4 {[%emt 0:01:24]} e4 {[%emt 0:05:43]} 17. Bc2 {[%emt 0:01:26]} Ba6 {[%emt 0:04:43]} 18. Nc3 {[%emt 0:03:08]} Bc4 {[%emt 0:02:52]} 19. Bg3 {[%emt 0:05:23]} Re6 {[%emt 0:07:16]} 20. Rhb1 {[%emt 0:13:03]} Rae8 {[%emt 0:08:39]} 21. Bf2 {[%emt 0:01:46]} h6 {[%emt 0:03:28]} 22. a4 {[%emt 0:02:06]} Ra8 {[%emt 0:04:10]} 23. h3 {[%emt 0:05:15]} g6 {[%emt 0:04:30]} 24. Ne2 {[%emt 0:13:22]} Bxe2 {[%emt 0:00:32]} 25. Kxe2 {[%emt 0:00:07]} Ree8 {[%emt 0:01:59]} 26. Kd2 {[%emt 0:01:23]} Nh7 {[%emt 0:01:41]} 27. Bd1 {[%emt 0:02:07]} f5 {[%emt 0:01:09]} 28. Bg3 {[%emt 0:01:10]} Ng5 {[%emt 0:00:26]} 29. Be2 {[%emt 0:02:23]} exf3 {[%emt 0:00:21]} 30. gxf3 {[%emt 0:00:12]} Re6 {[%emt 0:01:19]} 31. h4 {[%emt 0:00:46]} Nf7 {[%emt 0:00:30]} 32. Rc1 {[%emt 0:02:29]} Rae8 {[%emt 0:00:10]} 33. Ra3 {[%emt 0:00:49]} g5 {[%emt 0:00:14]} 34. hxg5 {[%emt 0:00:58]} hxg5 {[%emt 0:00:10]} 35. b5 {[%emt 0:08:15]} f4 {[%emt 0:02:51]} 36. Bf2 {[%emt 0:00:37]} bxc5 {[%emt 0:01:39]} 37. dxc5 {[%emt 0:03:19]} Nde5 {[%emt 0:03:18]} 38. b6 {[%emt 0:02:12]} R6e7 {[%emt 0:01:52]} 39. Rb3 {[%emt 0:04:14]} d4 {[%emt 0:04:24]} 40. e4 {[%emt 0:01:08]} Rd7 {[%emt 0:00:10]} 41. a5 {[%emt 0:01:39]} d3 {[%emt 0:01:09]} 42. Bd1 {[%emt 0:02:16]} a6 {[%emt 0:01:04]} 43. Rb4 {[%emt 0:00:55]} Red8 {[%emt 0:00:38]} 44. Rcb1 {[%emt 0:00:45]} Kg7 {[%emt 0:00:33]} 45. Kc3 {[%emt 0:04:14]} Rb7 {[%emt 0:01:19]} 46. Bd4 {[%emt 0:01:32]} Kg6 {[%emt 0:00:11]} 47. Ba4 {[%emt 0:00:52]} Rbd7 {[%emt 0:00:30]} 48. b7 {[%emt 0:02:25]} Rb8 {[%emt 0:00:10]} 49. Rb6 {[%emt 0:00:39]} Nxf3 {[%emt 0:01:26]} 50. Bxc6 {[%emt 0:01:02]} Rxd4 {[%emt 0:00:24]} 51. Bd5+ {[%emt 0:00:20]} Kg7 {[%emt 0:00:14]} 52. c6 {[%emt 0:00:11]} Nd6 {[%emt 0:01:00]} 53. c7 {[%emt 0:00:23]} Rxb7 {[%emt 0:00:20]} 54. Rxb7 {[%emt 0:00:18]} Kf6 {[%emt 0:00:04]} 55. R7b6 {[%emt 0:00:16]} d2 {[%emt 0:00:56]} 56. Rxd6+ {[%emt 0:00:37]} Kg7 {[%emt 0:00:05]} 57. c8=Q {[%emt 0:00:08]} d1=Q {[%emt 0:00:09]} 58. Qg8# {[%emt 0:00:08]} 1-0

[Event "FRA-ch Youth U14 2019"]
[Site "Hyeres"]
[Date "2019.04.14"]
[Round "1.4"]
[White "Hornet, Nicolas"]
[Black "Papadiamandis, Elliot"]
[Result "1/2-1/2"]
[ECO "E61"]
[WhiteElo "1783"]
[BlackElo "2157"]
[Annotator "NA"]
[PlyCount "98"]
[EventDate "2019.04.14"]
[EventType "swiss"]
[EventCountry "FRA"]
[SourceTitle "playchess.com"]
[Source "ChessBase"]
[SourceQuality "1"]
[TimeControl "5400+30"]

1. d4 {[%emt 0:00:00]} Nf6 {[%emt 0:00:00]} 2. Bf4 {[%emt 0:00:00]} g6 {[%emt 0:00:01]} 3. e3 {[%emt 0:00:00]} Bg7 {[%emt 0:00:20]} 4. Nf3 {[%emt 0:00:00]} d6 {[%emt 0:00:21]} 5. h3 {[%emt 0:00:00]} O-O {[%emt 0:00:16]} 6. Be2 {[%emt 0:00:11]} Nbd7 {[%emt 0:00:27]} 7. O-O {[%emt 0:00:13]} b6 {[%emt 0:00:21]} 8. c4 {[%emt 0:00:13]} Bb7 {[%emt 0:00:16]} 9. Nc3 {[%emt 0:00:12]} Ne4 {[%emt 0:00:47]} 10. Nxe4 {[%emt 0:01:00]} Bxe4 {[%emt 0:00:03]} 11. Qd2 {[%emt 0:01:34]} Bb7 {[%emt 0:02:20]} 12. Rfd1 {[%emt 0:03:18]} Qe8 {[%emt 0:06:35]} 13. Rac1 {[%emt 0:07:08]} e5 {[%emt 0:03:59]} 14. dxe5 {[%emt 0:04:30]} Nxe5 {[%emt 0:00:40]} 15. Nxe5 {[%emt 0:00:58]} Bxe5 {[%emt 0:05:12]} 16. Bh6 {[%emt 0:02:21]} Bg7 {[%emt 0:00:22]} 17. Bxg7 {[%emt 0:00:04]} Kxg7 {[%emt 0:00:15]} 18. Qd4+ {[%emt 0:00:35]} f6 {[%emt 0:02:58]} 19. b4 {[%emt 0:05:33]} Qe4 {[%emt 0:04:12]} 20. Qxe4 {[%emt 0:01:47]} Bxe4 {[%emt 0:00:02]} 21. c5 {[%emt 0:00:24]} dxc5 {[%emt 0:02:06]} 22. bxc5 {[%emt 0:07:35]} Bf5 {[%emt 0:13:10]} 23. Bf3 {[%emt 0:08:11]} Rad8 {[%emt 0:02:27]} 24. c6 {[%emt 0:11:59]} Kf7 {[%emt 0:01:27]} 25. Bd5+ {[%emt 0:02:02]} Be6 {[%emt 0:03:33]} 26. e4 {[%emt 0:03:03]} Rd6 {[%emt 0:04:51]} 27. Rd4 {[%emt 0:01:54]} Re8 {[%emt 0:04:28]} 28. Rcd1 {[%emt 0:02:21]} Bxd5 {[%emt 0:06:19]} 29. exd5 {[%emt 0:01:07]} Re2 {[%emt 0:02:03]} 30. a4 {[%emt 0:01:01]} a6 {[%emt 0:01:33]} 31. Kf1 {[%emt 0:01:33]} Rc2 {[%emt 0:04:42]} 32. g3 {[%emt 0:04:14]} Rc5 {[%emt 0:02:26]} 33. Kg2 {[%emt 0:01:33]} f5 {[%emt 0:01:08]} 34. f4 {[%emt 0:01:30]} Rc2+ {[%emt 0:01:47]} 35. Kf3 {[%emt 0:01:16]} Rc3+ {[%emt 0:01:54]} 36. Kg2 {[%emt 0:00:16]} Re3 {[%emt 0:01:01]} 37. Kf2 {[%emt 0:00:39]} Re7 {[%emt 0:01:26]} 38. R1d3 {[%emt 0:02:12]} Re8 {[%emt 0:01:58]} 39. Re3 {[%emt 0:02:21]} Red8 {[%emt 0:00:33]} 40. Red3 {[%emt 0:00:41]} Rb8 {[%emt 0:01:41]} 41. Re3 {[%emt 0:01:32]} Rbd8 {[%emt 0:01:55]} 42. Red3 {[%emt 0:00:10]} h6 {[%emt 0:00:14]} 43. h4 {[%emt 0:00:43]} Kf6 {[%emt 0:00:31]} 44. Kf3 {[%emt 0:00:59]} Rh8 {[%emt 0:02:23]} 45. Re3 {[%emt 0:01:51]} Rhd8 {[%emt 0:00:29]} 46. Red3 {[%emt 0:00:09]} g5 {[%emt 0:03:29]} 47. hxg5+ {[%emt 0:00:16]} hxg5 {[%emt 0:00:07]} 48. fxg5+ {[%emt 0:00:04]} Kxg5 {[%emt 0:00:42]} 49. g4 {[%emt 0:00:38]} Rf8 {[%emt 0:01:24] Ke4 [%clk 0:00:00]} 1/2-1/2

[Event "FRA-ch Youth U14 2019"]
[Site "Hyeres"]
[Date "2019.04.15"]
[Round "2.3"]
[White "Candelot, Clement"]
[Black "Maugenest, Ghislain"]
[Result "1-0"]
[ECO "C54"]
[WhiteElo "1875"]
[BlackElo "2167"]
[Annotator "RC"]
[PlyCount "91"]
[EventDate "2019.04.14"]
[EventType "swiss"]
[EventCountry "FRA"]
[SourceTitle "playchess.com"]
[Source "ChessBase"]
[SourceQuality "1"]
[TimeControl "5400+30"]

1. e4 e5 2. Nf3 Nc6 3. Bc4 Bc5 4. c3 Nf6 5. d4 exd4 6. cxd4 Bb4+ 7. Bd2 Bxd2+ 8. Nbxd2 d5 9. exd5 Nxd5 10. O-O O-O 11. Rc1 Nb6 12. Bb3 Bf5 13. Rc5 Ne7 14. Re1 Bg6 15. Ne4 c6 16. Qd2 Nbd5 17. Rcc1 a5 18. Ne5 a4 19. Bd1 a3 20. bxa3 Rxa3 21. Bb3 Nf5 22. Nc5 Nd6 23. Nxb7 Nxb7 24. Nxc6 Qf6 25. Bxd5 Nd6 26. Ne7+ Kh8 27. Nxg6+ hxg6 28. Bb3 Nf5 29. Rcd1 g5 30. Qd3 Rb8 31. Qh3+ Nh6 32. Qd7 Ra6 33. Qe7 Qg6 34. d5 Rd6 35. Bc2 Qf6 36. Qxf6 gxf6 37. Bb3 Kg7 38. f3 f5 39. Rc1 f4 40. Rc6 Nf5 41. Re5 Rxc6 42. dxc6 Kf6 43. c7 Rc8 44. Rc5 Ne3 45. Bc4 Nxc4 46. Rxc4 {[%emt 0:21:21]} 1-0

[Event "FRA-ch Youth U14 2019"]
[Site "Hyeres"]
[Date "2019.04.15"]
[Round "2.4"]
[White "Brehaut, Carl"]
[Black "Radovanovic, Luka"]
[Result "1/2-1/2"]
[ECO "D25"]
[WhiteElo "1861"]
[BlackElo "2111"]
[Annotator "NA RC"]
[PlyCount "74"]
[EventDate "2019.04.14"]
[EventType "swiss"]
[EventCountry "FRA"]
[SourceTitle "playchess.com"]
[Source "ChessBase"]
[SourceQuality "1"]
[TimeControl "5400+30"]

{[%evp 8,69,50,25,32767,-28,32767,32767,32767,32767,-6,-2,0,-13,29,45,49,15,104,0,28,15,12,2,17,-12,-6,0,29,0,0,-34,-20,32767,-33,-25,-36,-19,32767,32767,-54,-50,32767,32767,-6,32767,-24,-36,32767,-46,-25,32767,-22,-54,-25,32767,20,11,534,-16,-25,-17,40,-41]} 1. d4 {[%emt 0:00:00]} d5 {[%emt 0:00:00]} 2. c4 {[%emt 0:00:00]} dxc4 {[%emt 0:00:00]} 3. Nf3 {[%emt 0:00:00]} Nf6 {[%emt 0:00:15]} 4. e3 {[%emt 0:00:00]} Bg4 {[%emt 0:00:38]} 5. Nbd2 {[%emt 0:00:13]} (5. Bxc4 e6 6. Nc3 Nc6 7. Be2 Bd6 8. O-O O-O 9. h3 Bh5 10. b3 Nd5 11. Bb2 f5 12. Nd2 Nxc3 13. Bxc3 Bxe2 14. Qxe2 Ne7 15. Nc4 Nd5 16. Bd2 Qh4 17. Qf3 Rf6 {½-½ (40) Lenderman,A (2637)-Edouard,R (2643) chess.com INT 2019}) 5... e6 {[%emt 0:01:28]} 6. Qa4+ {[%emt 0:01:40] D25: Queen's Gambit Accepted: 4 e3: sidelines and 4...Bg4} c6 {[%emt 0:03:32]} 7. Qxc4 {[%emt 0:00:20]} Nbd7 {[%emt 0:02:57]} 8. Bd3 {[%emt 0:05:20]} Bd6 {[%emt 0:03:00]} 9. O-O {[%emt 0:04:30]} O-O {[%emt 0:01:21]} 10. Qc2 {[%emt 0:02:54]} e5 {[%emt 0:06:45]} ({Black should play} 10... Rc8) 11. Nc4 {[%emt 0:11:21]} Bxf3 $146 {[%emt 0:07:33]} ({Predecessor:} 11... Qe7 12. dxe5 Bxe5 13. Nfxe5 Nxe5 14. Nxe5 Qxe5 {1-0 (38) Giorgadze,G-Matulovic,M (2445) Ankara 1995}) 12. Nxd6 {[%emt 0:00:48]} Qc7 {[%emt 0:08:34] [#]} (12... Qb8 $14) 13. Nf5 {[%emt 0:04:38]} (13. Nxf7 $1 $16 Bxg2 14. Kxg2 Rxf7 15. Bc4) 13... Bh5 {[%emt 0:05:24]} 14. Bd2 {[%emt 0:12:07]} exd4 {[%emt 0:05:28]} 15. exd4 {[%emt 0:00:58]} Nd5 {[%emt 0:08:38]} 16. Rfe1 {[%emt 0:06:08]} N7f6 {[%emt 0:02:51]} 17. Qc5 {[%emt 0:05:36]} Kh8 {[%emt 0:10:05]} 18. Rac1 {[%emt 0:11:06]} Bg6 {[%emt 0:02:42]} 19. Bb1 {[%emt 0:04:12]} Qd7 {[%emt 0:02:29]} 20. Ng3 {[%emt 0:04:20]} Bxb1 {[%emt 0:02:50]} 21. Rxb1 {[%emt 0:00:06]} b6 {[%emt 0:01:21]} 22. Qc2 {[%emt 0:00:33]} Rfe8 {[%emt 0:00:53]} 23. Rxe8+ {[%emt 0:01:44]} Rxe8 {[%emt 0:00:18]} 24. Rc1 {[%emt 0:00:13]} Re6 {[%emt 0:02:48]} 25. Qd3 {[%emt 0:01:28]} Nc7 {[%emt 0:04:31]} 26. b4 {[%emt 0:03:27]} Nb5 {[%emt 0:01:15]} 27. Be3 {[%emt 0:00:27]} Nd6 {[%emt 0:01:20]} 28. Qc3 {[%emt 0:02:52]} Nde4 {[%emt 0:01:32]} 29. Nxe4 {[%emt 0:00:16]} Nxe4 {[%emt 0:00:07]} 30. Qc4 {[%emt 0:01:09]} Nf6 {[%emt 0:01:40]} 31. a4 {[%emt 0:02:30]} Nd5 {[%emt 0:03:59]} 32. b5 {[%emt 0:01:41]} cxb5 $2 {[%emt 0:00:47] [#]} (32... Ne7 $1 $11 {and Black is okay.}) 33. Qc8+ $2 {[%emt 0:00:11]} ({White must play} 33. Qxd5 $1 $18 {[%mdl 512]} Qe8 (33... Qxd5 34. Rc8+) 34. Rc7) 33... Qe8 {[%emt 0:00:09]} 34. axb5 {[%emt 0:01:07]} Nxe3 {[%emt 0:03:10]} ({Black should try} 34... h6 $11) 35. Qxe8+ $15 {[%emt 0:00:06]} Rxe8 {[%emt 0:00:16]} 36. fxe3 {[%emt 0:00:03]} g6 {[%emt 0:00:36]} 37. Kf2 {[%emt 0:00:42]} Re7 {[%emt 0:00:27]} 1/2-1/2

[Event "FRA-ch Youth U14 2019"]
[Site "Hyeres"]
[Date "2019.04.15"]
[Round "3.1"]
[White "Robert, Yoann"]
[Black "Razafindratsima, Timothe"]
[Result "1/2-1/2"]
[ECO "D91"]
[WhiteElo "1965"]
[BlackElo "2181"]
[Annotator "NA"]
[PlyCount "133"]
[EventDate "2019.04.14"]
[EventType "swiss"]
[EventCountry "FRA"]
[SourceTitle "playchess.com"]
[Source "ChessBase"]
[SourceQuality "1"]
[TimeControl "5400+30"]

1. d4 {[%emt 0:00:00]} Nf6 {[%emt 0:00:00]} 2. Nf3 {[%emt 0:00:00]} g6 {[%emt 0:00:00]} 3. c4 {[%emt 0:00:00]} Bg7 {[%emt 0:00:09]} 4. Nc3 {[%emt 0:00:00]} d5 {[%emt 0:00:07]} 5. Bg5 {[%emt 0:00:00]} c6 {[%emt 0:00:53]} 6. e3 {[%emt 0:02:23]} O-O {[%emt 0:00:45]} 7. cxd5 {[%emt 0:03:18]} Nxd5 {[%emt 0:02:20]} 8. Nxd5 {[%emt 0:01:37]} cxd5 {[%emt 0:01:55]} 9. Bd3 {[%emt 0:04:05]} Nc6 {[%emt 0:01:07]} 10. O-O {[%emt 0:04:11]} Qb6 {[%emt 0:01:48]} 11. Qe2 {[%emt 0:03:02]} Bg4 {[%emt 0:00:48]} 12. h3 {[%emt 0:06:17]} Bd7 {[%emt 0:00:15]} 13. Bf4 {[%emt 0:10:15]} Rfe8 {[%emt 0:04:39]} 14. Ne5 {[%emt 0:06:37]} Nxe5 {[%emt 0:00:51]} 15. dxe5 {[%emt 0:00:06]} Rac8 {[%emt 0:00:44]} 16. Rac1 {[%emt 0:03:07]} a6 {[%emt 0:01:34]} 17. Bh2 {[%emt 0:02:54]} Be6 $11 {[%emt 0:02:23]} 18. b3 {[%emt 0:02:54]} d4 {[%emt 0:01:20]} 19. e4 {[%emt 0:01:40]} Rc3 {[%emt 0:01:04]} 20. f4 {[%emt 0:02:26]} Rec8 {[%emt 0:00:44]} 21. Rcd1 {[%emt 0:00:42]} Bd7 {[%emt 0:04:12]} 22. Qf2 {[%emt 0:02:01]} e6 {[%emt 0:06:04]} 23. f5 {[%emt 0:03:10]} exf5 {[%emt 0:05:17]} 24. exf5 {[%emt 0:00:14]} gxf5 {[%emt 0:04:10]} 25. Bxf5 {[%emt 0:00:20]} Bxf5 {[%emt 0:00:20]} 26. Qxf5 {[%emt 0:00:07]} d3+ {[%emt 0:00:18]} 27. Kh1 {[%emt 0:00:07]} Qg6 {[%emt 0:00:21]} 28. Qf3 {[%emt 0:02:30]} b5 {[%emt 0:01:55]} 29. Bf4 {[%emt 0:01:36]} h6 {[%emt 0:02:33]} 30. Rd2 {[%emt 0:02:22]} Rd8 {[%emt 0:05:39]} 31. Qe3 {[%emt 0:04:02]} Kh7 {[%emt 0:01:03]} 32. Rfd1 {[%emt 0:00:59]} Rd5 {[%emt 0:01:07]} 33. g4 {[%emt 0:02:12]} Bf8 {[%emt 0:03:38]} 34. h4 {[%emt 0:02:06]} Rd7 {[%emt 0:01:15]} 35. Qf3 {[%emt 0:00:48]} Rd4 {[%emt 0:02:13]} 36. Kh2 {[%emt 0:01:38]} Qe4 {[%emt 0:02:02]} 37. Kg3 {[%emt 0:00:54]} Qxf3+ {[%emt 0:00:10]} 38. Kxf3 {[%emt 0:00:06]} Be7 {[%emt 0:00:58]} 39. Be3 {[%emt 0:00:49]} Rd8 {[%emt 0:01:50]} 40. Ke4 {[%emt 0:00:43]} Rc2 {[%emt 0:05:04]} 41. Rxd3 {[%emt 0:01:48]} Rxd3 {[%emt 0:00:33]} 42. Rxd3 {[%emt 0:00:06]} Rxa2 {[%emt 0:01:13]} 43. Rd7 {[%emt 0:00:08]} Bxh4 {[%emt 0:00:06]} 44. Rxf7+ {[%emt 0:00:03]} Kg6 {[%emt 0:03:56]} 45. Rb7 {[%emt 0:00:17]} Re2 {[%emt 0:05:49]} 46. Rb6+ {[%emt 0:00:39]} Kg7 {[%emt 0:02:26]} 47. Kd3 {[%emt 0:00:12]} Rb2 {[%emt 0:00:48]} 48. Kc3 {[%emt 0:00:38]} Re2 {[%emt 0:00:18]} 49. Bxh6+ {[%emt 0:00:06]} Kf7 {[%emt 0:00:09]} 50. e6+ {[%emt 0:01:46]} Rxe6 {[%emt 0:00:14]} 51. Rxe6 {[%emt 0:00:04]} Kxe6 {[%emt 0:00:11]} 52. Kb4 {[%emt 0:00:13]} Bd8 {[%emt 0:04:48]} 53. Kc5 {[%emt 0:00:12]} Ke5 {[%emt 0:01:09]} 54. Kc6 {[%emt 0:01:02]} Ke6 {[%emt 0:00:57]} 55. Bf4 {[%emt 0:00:10]} Kf6 {[%emt 0:01:27]} 56. Be3 {[%emt 0:00:59]} Kg6 {[%emt 0:05:54]} 57. Bb6 {[%emt 0:00:42]} Be7 {[%emt 0:00:19]} 58. Bc5 {[%emt 0:00:33]} Bd8 {[%emt 0:00:43]} 59. Be3 {[%emt 0:00:43]} Kf6 {[%emt 0:01:04]} 60. Bb6 {[%emt 0:00:33]} Be7 {[%emt 0:00:13]} 61. Bc5 {[%emt 0:00:03]} Bd8 {[%emt 0:00:22]} 62. Kd7 {[%emt 0:00:06]} Ba5 {[%emt 0:00:11]} 63. Be7+ {[%emt 0:00:19]} Kf7 {[%emt 0:00:58]} 64. b4 {[%emt 0:00:48]} Bxb4 {[%emt 0:00:26]} 65. Bxb4 {[%emt 0:00:05]} Kg6 {[%emt 0:00:11]} 66. Kc6 {[%emt 0:00:44]} Kg5 {[%emt 0:00:05]} 67. Kb6 {[%emt 0:00:03]} 1/2-1/2